bitfinex/quotes_ETHUSD_20250620
["timestamp","ask_amount","ask_price","bid_price","bid_amount"]
[1750447899150,11.312,2417.3,2417.2,4.97039452]
[1750447900019,8.819,2417.3,2417.2,5.02999452]
[1750447900244,1.835,2417.3,2417.2,5.02999452]
[1750447900554,6.983,2417.3,2417.2,5.02999452]
[1750447900746,1.835,2417.7,2417.6,4.13633355]
[1750447901141,8.818,2417.7,2417.6,4.13633355]
[1750447901322,8.818,2417.7,2417.6,4.96957354]
[1750447901323,1.835,2417.7,2417.6,4.96957354]
[1750447901527,8.818,2417.7,2417.6,5.02917354]
[1750447901843,10.767,2417.9,2417.8,4.13599139]
[1750447902044,19.585,2417.9,2417.8,4.13599139]
[1750447902242,29.585,2417.9,2417.8,4.13599139]
[1750447902426,29.585,2417.9,2417.7,4.1360803]
[1750447902833,29.585,2417.9,2417.8,4.13599139]
[1750447903526,29.585,2417.9,2417.7,4.13609765]
[1750447903757,0.7611,2418.3,2417.7,0.82723527]
[1750447903953,4.5449084,2418.5,2417.2,0.83337649]
[1750447903954,4.5449084,2418.5,2418.3,4.13501177]
[1750447904168,4.5449084,2418.5,2418.2,4.13529684]
[1750447904169,2.0589084,2418.5,2418.4,4.13496526]
[1750447904332,6.986,2418.4,2418.3,4.13505952]
[1750447904531,16.986,2418.4,2418.3,4.13505952]
[1750447904862,6.986,2418.4,2418.1,4.13544579]
[1750447905223,6.986,2418.4,2417.8,0.757]
[1750447905224,7.7429,2418.4,2418.2,4.1353024]
[1750447905636,25.08862291,2418.4,2417.9,0.4952742]
[1750447905836,0.061,2418.2,2417.7,4.13606018]
[1750447906041,16.6211441,2418.3,2417.8,4.13598933]
[1750447906042,7.7449,2418.1,2417.8,4.13598933]
[1750447906244,7.7449,2418.1,2417.4,0.8166]
[1750447906245,1.838,2418.0,2417.9,4.13569693]
[1750447907169,0.7569,2418.1,2418.0,4.13564929]
[1750447907468,9.5849,2418.1,2418.0,4.13564929]
[1750447909565,12.486,2418.3,2418.2,4.13530725]
[1750447909734,22.0893,2418.3,2418.2,4.13530725]
[1750447910645,22.1493,2418.3,2418.0,4.13556841]
[1750447910845,22.0893,2418.3,2418.2,4.13530725]
[1750447911955,19.6033,2418.3,2417.7,0.7607]
[1750447912160,19.6033,2418.3,2418.2,4.13530725]
[1750447912868,19.6033,2418.3,2418.1,4.13536465]
[1750447913234,22.1493,2418.3,2418.0,4.13556483]
[1750447913434,22.0893,2418.3,2418.1,4.13546041]
[1750447913769,2.486,2418.0,2417.5,0.7768]
[1750447913953,6.989,2417.9,2417.8,4.13599139]
[1750447917432,7.7677,2417.9,2417.8,4.13599139]
[1750447917643,6.989,2417.9,2417.8,4.13599139]
[1750447918969,6.989,2417.9,2417.8,4.96320506]
[1750447919269,6.989,2417.9,2417.8,4.13599139]
[1750447919458,6.989,2417.9,2417.8,4.19629139]
[1750447921335,6.889,2417.9,2417.8,4.19629139]
[1750447922091,2.0629084,2418.5,2418.3,4.13513625]
[1750447922235,7.007,2418.4,2418.0,0.8265]
[1750447922443,7.007,2418.4,2418.3,4.13513625]
[1750447922659,0.7787,2418.3,2417.7,4.96255268]
[1750447922882,10.8387,2418.3,2418.1,4.13538861]
[1750447923081,18.845,2418.2,2418.1,4.13538861]
[1750447923883,18.845,2418.2,2417.8,4.13599139]
[1750447924182,0.06,2418.1,2417.8,4.13585751]
[1750447924346,17.007,2418.0,2417.9,4.13574365]
[1750447924546,19.553,2418.0,2417.7,4.13610508]
[1750447924782,19.553,2418.0,2417.8,4.13589817]
[1750447925390,13.3104,2417.9,2417.3,0.8069]
[1750447925599,14.85972291,2417.6,2417.0,4.13724833]
[1750447925895,0.06,2417.4,2416.7,5.00499277]
[1750447926091,7.01,2417.3,2417.1,4.13705542]
[1750447926294,7.07,2417.3,2417.1,4.13705542]
[1750447926489,7.07,2417.3,2416.7,0.8672]
[1750447926490,10.0,2417.2,2416.7,0.8672]
[1750447926692,17.009,2417.1,2417.0,4.13727287]
[1750447927395,10.0,2417.1,2417.0,4.13727287]
[1750447927594,17.01,2417.1,2417.0,4.13727287]
[1750447928659,17.01,2417.1,2417.0,4.19757287]
[1750447928859,17.01,2417.1,2416.9,4.13738992]
[1750447929102,17.01,2417.1,2417.0,4.13736036]
[1750447931885,17.01,2417.1,2416.9,4.13749889]
[1750447932193,17.01,2417.1,2417.0,4.13736036]
[1750447935176,17.01,2417.1,2416.9,4.13743188]
[1750447935375,0.7656,2416.9,2416.3,0.8244]
[1750447935596,7.006,2416.8,2416.7,4.13787396]
[1750447935778,17.014,2416.8,2416.7,4.13787396]
[1750447936863,17.014,2416.8,2416.6,4.13804439]
[1750447937060,1.849,2416.7,2416.6,4.13804439]
[1750447937817,2.6026,2416.7,2416.6,4.13804439]
[1750447938263,16.74058283,2416.7,2416.1,4.95575652]
[1750447938461,10.0,2416.5,2416.3,4.13847746]
[1750447938686,7.0738,2416.4,2416.2,4.13870128]
[1750447938881,7.0738,2416.4,2416.1,4.13879269]
[1750447938882,7.015,2416.4,2416.1,4.13879269]
[1750447939139,7.015,2416.4,2416.2,4.13871511]
[1750447939318,0.7536,2416.7,2416.5,4.13818637]
[1750447939641,18.864,2416.6,2416.5,4.13818637]
[1750447939928,18.864,2416.6,2416.4,4.1382876]
[1750447940288,18.864,2416.6,2416.5,4.13821642]
[1750447941124,18.9228,2416.6,2416.4,4.13836883]
[1750447941314,18.9228,2416.6,2416.5,4.13821642]
[1750447941919,21.4088,2416.6,2416.5,4.13821642]
[1750447942224,2.486,2416.8,2416.7,4.13787396]
[1750447942386,19.499,2416.8,2416.7,4.13787396]
[1750447943017,19.499,2416.8,2416.3,3.0384]
[1750447943222,19.499,2416.8,2416.5,4.13817507]
[1750447943385,19.499,2416.8,2416.5,4.13809011]
[1750447943581,13.2463,2416.7,2416.5,4.13810242]
[1750447943795,9.514,2416.6,2416.4,4.13829317]
[1750447944426,9.514,2416.6,2416.5,4.13821642]
[1750447944719,9.514,2416.6,2416.4,4.13836165]
[1750447945027,9.5728,2416.6,2416.4,4.13836165]
[1750447945323,9.514,2416.6,2416.5,4.13821642]
[1750447945628,9.5728,2416.6,2416.5,4.13821642]
[1750447945811,9.5728,2416.6,2416.4,4.13829964]
[1750447946012,9.5728,2416.6,2416.5,4.13821642]
[1750447946325,9.514,2416.6,2416.5,4.13821642]
[1750447948750,9.514,2416.6,2416.3,4.13848202]
[1750447948751,9.5728,2416.6,2416.3,4.13848202]
[1750447949050,9.5728,2416.6,2416.1,0.0581]
[1750447949051,29.8578357,2416.6,2416.5,4.13821642]
[1750447949209,12.486,2416.6,2416.5,4.13821642]
[1750447949390,2.486,2416.9,2416.8,4.13770274]
[1750447949593,4.336,2416.9,2416.8,4.13770274]
[1750447949793,11.364,2416.9,2416.8,4.13770274]
[1750447949989,11.363,2416.9,2416.8,4.13770274]
[1750447951192,2.486,2417.0,2416.9,4.13753154]
[1750447951494,4.336,2417.0,2416.9,4.13753154]
[1750447951828,11.36,2417.0,2416.9,4.13753154]
[1750447952326,11.36,2417.0,2416.3,4.13839712]
[1750447952327,0.8261,2416.9,2416.3,4.91524669]
[1750447952506,9.509,2416.8,2416.7,4.13787396]
[1750447952829,2.486,2417.0,2416.9,4.19563154]
[1750447953035,11.361,2417.0,2416.9,4.19563154]
[1750447954016,11.361,2417.0,2416.8,4.13765923]
[1750447954216,11.361,2417.0,2416.7,4.1377929]
[1750447954412,11.361,2417.0,2416.5,0.7767]
[1750447954413,11.361,2417.0,2416.9,4.13753154]
[1750447954721,11.74386506,2417.0,2416.9,4.13753154]
[1750447954947,11.74386592,2417.0,2416.9,4.13753154]
[1750447955251,11.74386305,2417.0,2416.9,4.13753154]
[1750447955549,11.74386305,2417.0,2416.9,4.19563154]
[1750447955918,1.85,2417.0,2416.9,5.67285564]
[1750447956113,10.762,2417.2,2416.9,5.67285564]
[1750447956326,15.0121367,2418.0,2417.3,4.95744689]
[1750447956327,1.85,2417.4,2417.3,4.95744689]
[1750447956552,0.8002,2417.8,2417.7,4.13616246]
[1750447956714,3.26287888,2417.8,2417.7,4.13616246]
[1750447956918,12.76989555,2417.8,2417.7,4.13616246]
[1750447957142,4.94872759,2417.8,2417.7,4.13616246]
[1750447957330,9.25295564,2417.8,2417.7,4.19426246]
[1750447957549,19.25295564,2417.8,2417.7,4.19426246]
[1750447957750,9.25295564,2417.8,2417.7,4.19426246]
[1750447958055,9.25295564,2417.8,2417.7,4.13616246]
[1750447958056,8.87,2417.8,2417.7,4.13616246]
[1750447958257,9.25299636,2417.8,2417.7,4.13616246]
[1750447958422,8.87,2417.8,2417.6,4.13627592]
[1750447958620,11.356,2417.8,2417.6,4.13633355]
[1750447958847,11.356,2417.8,2417.7,4.13616246]
[1750447959360,8.869,2417.8,2417.7,4.19420545]
[1750447959524,8.869,2417.8,2417.7,4.13610545]
[1750447959918,10.0,2418.0,2417.9,0.7842]
[1750447960153,17.40026294,2418.0,2417.9,4.97812033]
[1750447960357,17.017,2418.0,2417.9,4.97812033]
[1750447960543,17.017,2418.0,2417.9,4.13582033]
[1750447961469,17.39926991,2418.0,2417.9,4.13582033]
[1750447961671,17.39927112,2418.0,2417.9,4.13582033]
[1750447961874,17.017,2418.0,2417.9,4.13582033]
[1750447962072,19.503,2418.0,2417.7,0.7842]
[1750447962271,35.47743492,2418.0,2417.7,4.13608273]
[1750447962475,34.30643469,2418.0,2417.8,4.13589447]
[1750447962782,19.503,2418.0,2417.8,4.13589447]
[1750447963355,19.503,2418.0,2417.7,4.13606444]
[1750447963789,0.0588,2417.9,2417.6,4.13630957]
[1750447964088,9.496,2417.8,2417.6,4.13630957]
[1750447964453,9.496,2417.8,2417.7,4.13616246]
[1750447967456,9.496,2417.8,2417.6,4.13622862]
[1750447967889,19.496,2417.8,2417.7,4.13616246]
[1750447968188,19.496,2417.8,2417.4,0.75]
[1750447968396,19.496,2417.8,2417.6,4.13616448]
[1750447968782,19.496,2417.8,2417.6,4.1361661]
[1750447968989,19.496,2417.8,2417.7,4.13616246]
[1750447969611,19.496,2417.8,2417.6,4.13625779]
[1750447969792,19.496,2417.8,2417.6,4.13616857]
[1750447970107,19.496,2417.8,2417.7,4.13616246]
[1750447971173,18.831,2417.8,2417.7,4.13616246]
[1750447971376,21.317,2417.8,2417.7,4.13616246]
[1750447971905,21.317,2417.8,2417.7,4.19386246]
[1750447972810,21.317,2417.8,2417.7,4.13616246]
[1750447973776,21.317,2417.8,2417.7,4.19386246]
[1750447973978,21.317,2417.8,2417.7,4.13616246]
[1750447977021,11.329,2418.1,2418.0,4.13564929]
[1750447977184,2.486,2418.1,2418.0,4.13564929]
[1750447977380,9.483,2418.1,2418.0,4.13564929]
[1750447977697,6.997,2418.1,2418.0,4.19334929]
[1750447978014,6.997,2418.1,2418.0,5.73393489]
[1750447979312,0.2249084,2418.5,2418.4,4.13496526]
[1750447979479,7.2239084,2418.5,2418.4,4.13496526]
[1750447979681,7.2239084,2418.5,2418.4,4.19266526]
[1750447979911,7.2229084,2418.5,2418.4,5.10572541]
[1750447980214,0.2249084,2418.5,2418.4,5.10572541]
[1750447980515,7.2229084,2418.5,2418.4,5.10572541]
[1750447981681,0.2249084,2418.5,2418.4,5.90852541]
[1750447981988,2.7109084,2418.5,2418.4,4.13496526]
[1750447983234,2.7109084,2418.5,2418.3,4.13505572]
[1750447983415,2.7109084,2418.5,2418.4,4.13496526]
[1750447985820,2.7109084,2418.5,2418.1,4.93190585]
[1750447985821,9.7039084,2418.5,2418.1,4.93190585]
[1750447985981,2.486,2418.3,2418.1,4.13533722]
[1750447986182,9.474,2418.2,2417.8,3.0723]
[1750447986385,2.486,2418.0,2417.7,4.13599945]
[1750447986617,9.91900732,2417.9,2417.6,4.13621591]
[1750447986805,10.3202,2417.9,2417.6,4.13621591]
[1750447987015,0.44403837,2417.8,2417.5,4.13643166]
[1750447987593,12.93003837,2417.8,2417.4,4.13659858]
[1750447987808,0.3824233,2417.7,2417.5,4.136488]
[1750447987998,8.837,2417.6,2417.5,4.136488]
[1750447988195,21.873,2417.6,2416.9,1.5764241]
[1750447988394,12.486,2417.5,2417.3,4.13682353]
[1750447988601,12.486,2417.5,2417.0,4.13729138]
[1750447988602,13.2392,2417.4,2417.0,4.13729138]
[1750447988806,16.993,2417.3,2417.2,4.13701803]
[1750447990421,16.993,2417.3,2417.2,4.19471803]
[1750447990941,16.993,2417.3,2417.2,5.02789965]
[1750447991920,16.988,2417.3,2417.2,5.02789965]
[1750447992990,10.0,2417.3,2417.2,5.02789965]
[1750447993191,16.987,2417.3,2417.2,5.02789965]
[1750447993391,16.987,2417.3,2417.2,4.13701803]
[1750447993618,16.987,2417.3,2417.2,4.19471803]
[1750447996246,0.8041,2417.2,2417.0,6.38068957]
[1750447996409,0.0575,2417.0,2416.7,4.13774886]
[1750447996602,0.0575,2417.0,2416.3,4.19610065]
[1750447996603,10.8616,2416.8,2416.5,4.13814849]
[1750447996936,6.986,2416.7,2416.5,4.13814849]
[1750447997342,12.486,2416.6,2416.4,4.13828507]
[1750447997546,6.986,2416.5,2416.4,4.13828507]
[1750447998414,6.986,2416.5,2416.3,4.13847381]
[1750447998605,1.837,2416.4,2416.3,4.13855895]
[1750447999234,2.486,2416.3,2415.8,0.7633]
[1750447999552,6.987,2416.2,2416.1,4.13890153]
[1750448000646,6.987,2416.2,2415.8,5.20334812]
[1750448000844,6.987,2416.2,2415.9,4.13908751]
[1750448001050,6.987,2416.2,2416.1,4.13890153]
[1750448005376,6.987,2416.2,2415.9,4.19776492]
[1750448005679,12.486,2416.4,2416.1,4.13882007]
[1750448005892,1.837,2416.2,2416.1,4.13882007]
[1750448006938,10.0,2416.4,2416.1,5.03106278]
[1750448007144,10.0,2416.5,2416.4,4.13828391]
[1750448007443,18.825,2416.5,2416.4,4.13828391]
[1750448008441,25.50678848,2416.5,2416.0,4.13891787]
[1750448008747,0.0575,2416.4,2416.1,4.13883574]
[1750448008971,0.756,2416.2,2416.0,4.13896945]
[1750448009175,6.988,2416.1,2416.0,4.13896945]
[1750448009578,10.0,2416.0,2415.9,4.13911806]
[1750448009745,6.988,2416.1,2415.9,4.13911806]
[1750448009960,1.838,2416.0,2415.6,2.2434]
[1750448010167,6.988,2415.9,2415.8,4.13928581]
[1750448010682,6.988,2415.9,2415.6,2.2434]
[1750448010891,6.988,2415.9,2415.7,4.13943005]
[1750448011074,6.988,2415.9,2415.8,4.13941551]
[1750448011770,6.988,2415.9,2415.7,4.13948953]
[1750448011972,2.486,2415.8,2415.7,4.13948953]
[1750448017093,2.458906,2415.8,2415.7,4.13948953]
[1750448019289,6.988,2415.9,2415.8,4.13941551]
[1750448019491,3.257,2416.5,2416.3,4.13838819]
[1750448019797,13.257,2416.5,2416.4,4.13838768]
[1750448019996,15.47636486,2416.5,2416.4,4.13838768]
[1750448020353,12.486,2416.4,2416.3,4.13847932]
[1750448020573,19.85636486,2416.4,2416.3,4.13847932]
[1750448020999,19.85636486,2416.4,2415.9,6.38264127]
[1750448021000,19.85636486,2416.4,2416.0,4.13900184]
[1750448021158,2.486,2416.2,2416.0,4.13900184]
[1750448021368,0.43897653,2416.3,2416.0,4.13900184]
[1750448021369,9.475,2416.1,2416.0,4.13900184]
[1750448021971,9.475,2416.1,2416.0,4.96650184]
[1750448022207,9.475,2416.1,2416.0,4.19760184]
[1750448023206,10.0,2416.0,2415.6,0.7689]
[1750448023508,0.38215051,2415.9,2415.7,4.1394315]
[1750448023710,21.69415051,2415.8,2415.7,4.1394315]
[1750448024219,21.69415051,2415.8,2415.5,0.0586]
[1750448024406,21.312,2415.8,2415.5,0.0586]
[1750448024606,21.312,2415.8,2415.6,4.13960354]
[1750448025109,21.312,2415.8,2415.5,4.13992451]
[1750448025110,2.9256289,2415.7,2415.5,4.13992451]
[1750448025323,2.486,2415.7,2415.6,4.13975823]
[1750448025525,9.85613783,2415.7,2415.6,4.13975823]
[1750448026500,2.86873556,2415.7,2415.6,4.13975823]
[1750448026720,11.69573556,2415.7,2415.6,4.13975823]
[1750448027508,11.69578393,2415.7,2415.6,4.13975823]
[1750448027715,11.69578393,2415.7,2415.6,4.20105823]
[1750448028222,11.69578393,2415.7,2415.6,4.13975823]
[1750448028414,11.69592981,2415.7,2415.6,4.13975823]
[1750448028843,11.69592981,2415.7,2415.5,4.13990143]
[1750448028997,0.38285222,2415.6,2415.4,4.14002416]
[1750448029194,6.988,2415.5,2415.4,4.14002416]
[1750448030690,7.37083266,2415.5,2415.3,4.14014251]
[1750448030930,6.988,2415.5,2415.4,4.14010101]
[1750448031131,7.37083803,2415.5,2415.4,4.14010101]
[1750448031534,6.988,2415.5,2415.4,4.14010101]
[1750448032210,7.37078962,2415.5,2415.4,4.14010101]
[1750448032390,7.37078962,2415.5,2415.3,6.38357642]
[1750448032707,6.988,2415.5,2415.3,6.38357642]
[1750448032904,0.38276334,2415.4,2415.3,6.38357642]
[1750448033205,9.474,2415.5,2415.2,4.1403636]
[1750448033406,12.86877146,2415.4,2415.1,4.14053463]
[1750448033622,10.0,2415.2,2415.0,4.14069212]
[1750448033836,7.37077146,2415.1,2415.0,4.14069212]
[1750448034434,6.988,2415.1,2414.9,2.2434]
[1750448034634,6.988,2415.1,2414.9,4.14089044]
[1750448035152,0.38233949,2415.0,2414.9,4.14082369]
[1750448035313,6.988,2415.1,2415.0,4.14078674]
[1750448035662,7.37034092,2415.1,2415.0,4.14078674]
[1750448036380,7.37034073,2415.1,2415.0,4.14078674]
[1750448036863,7.37034035,2415.1,2415.0,4.14078674]
[1750448038035,7.37010889,2415.1,2415.0,4.14078674]
[1750448039282,7.37010882,2415.1,2415.0,4.14078674]
[1750448039580,7.37010885,2415.1,2415.0,4.14078674]
[1750448040577,2.486,2415.4,2415.2,0.0613]
[1750448040872,16.988,2415.3,2415.2,4.20165165]
[1750448041032,0.7818,2415.2,2415.1,4.1405282]
[1750448041232,16.988,2415.3,2415.2,4.14044385]
[1750448041433,17.37012281,2415.3,2415.2,4.14044385]
[1750448041667,17.37012304,2415.3,2415.2,4.14044385]
[1750448042030,17.37012304,2415.3,2415.1,4.14050789]
[1750448042233,19.474,2415.3,2415.0,4.14071518]
[1750448042434,19.5344,2415.3,2415.0,4.14071518]
[1750448042690,19.5344,2415.3,2414.9,4.14081611]
[1750448042856,3.3275,2415.2,2415.0,4.14074974]
[1750448043187,6.988,2415.1,2415.0,4.14074974]
[1750448043351,6.988,2415.1,2414.9,4.14086391]
[1750448044190,16.988,2415.1,2415.0,4.20208674]
[1750448044353,18.825,2415.1,2415.0,5.03638181]
[1750448044554,18.825,2415.1,2415.0,4.20208674]
[1750448045791,10.769,2415.9,2415.2,4.20157503]
[1750448046081,7.36957033,2415.8,2415.5,4.13979006]
[1750448046283,6.988,2415.8,2415.5,4.13979006]
[1750448046855,9.474,2415.8,2415.5,4.13979006]
[1750448047260,9.474,2415.8,2415.4,4.14007907]
[1750448047466,0.0604,2415.7,2415.4,4.13994956]
[1750448047677,9.475,2415.6,2415.3,4.14017895]
[1750448047979,1.837,2415.5,2415.4,4.14009235]
[1750448048785,4.323,2415.5,2415.1,4.89195743]
[1750448048986,6.988,2415.4,2415.3,4.14027242]
[1750448050592,6.988,2415.4,2415.2,4.14042708]
[1750448050887,9.5344,2415.4,2415.0,1.0]
[1750448051093,9.5344,2415.4,2415.0,5.14074327]
[1750448051388,13.67455499,2415.4,2415.0,5.14074327]
[1750448051601,13.61415499,2415.4,2415.0,5.14074327]
[1750448051896,13.61415499,2415.4,2415.0,1.0]
[1750448051897,9.474,2415.4,2415.0,1.0]
[1750448052056,9.5344,2415.4,2415.1,4.14055319]
[1750448052261,9.474,2415.4,2415.0,5.1407253]
[1750448052457,0.0604,2415.3,2415.0,5.1407253]
[1750448052762,9.474,2415.2,2415.0,1.0]
[1750448052962,10.3431,2415.2,2415.0,1.0]
[1750448053474,10.3431,2415.2,2415.0,5.14077116]
[1750448053787,10.2827,2415.2,2415.1,4.14061529]
[1750448054506,10.66547672,2415.2,2415.0,5.14068444]
[1750448054816,10.2827,2415.2,2415.0,5.14068444]
[1750448055111,10.2827,2415.2,2415.1,4.14061529]
[1750448055315,10.66547748,2415.2,2415.0,5.14072529]
[1750448055509,10.2827,2415.2,2415.1,4.14061529]
[1750448055687,10.66551673,2415.2,2415.1,4.14061529]
[1750448055890,10.66551673,2415.2,2415.0,5.14070603]
[1750448056198,11.35529167,2415.2,2415.0,1.0]
[1750448056372,12.9291728,2415.1,2415.0,1.0]
[1750448056778,12.92919438,2415.1,2415.0,1.0]
[1750448057314,13.74259419,2415.1,2415.0,1.0]
[1750448057877,17.88320948,2415.1,2415.0,1.0]
[1750448058079,18.66489221,2415.1,2415.0,1.0]
[1750448058279,18.66486354,2415.1,2415.0,1.0]
[1750448058494,18.87355848,2415.1,2415.0,1.0]
[1750448058705,18.87329081,2415.1,2415.0,1.0]
[1750448058900,18.87289783,2415.1,2415.0,1.0]
[1750448059377,18.87288788,2415.1,2415.0,1.0]
[1750448059578,18.87287227,2415.1,2415.0,1.0]
[1750448059810,14.52356204,2415.1,2415.0,1.0]
[1750448060019,18.66417733,2415.1,2415.0,1.0]
[1750448060816,18.66417733,2415.1,2415.0,5.14078674]
[1750448060817,3.09776908,2415.1,2415.0,5.14078674]
[1750448061018,2.486,2415.1,2415.0,5.20138674]
[1750448061227,2.486,2415.4,2415.3,5.00707242]
[1750448061518,6.988,2415.5,2415.4,4.20070101]
[1750448061821,1.836,2415.7,2415.6,5.00655823]
[1750448061990,8.824,2415.7,2415.6,5.04795071]
[1750448062321,1.836,2416.0,2415.8,4.20001551]
[1750448062685,1.836,2416.0,2415.9,4.24123594]
[1750448063086,1.836,2416.0,2415.9,5.04743594]
[1750448063308,8.827,2416.0,2415.9,5.00604417]
[1750448063486,8.827,2416.0,2415.9,6.38502481]
[1750448063883,1.836,2416.0,2415.9,6.38502481]
[1750448064082,8.824,2416.0,2415.9,6.38502481]
[1750448064983,8.824,2416.0,2415.9,4.13924417]
[1750448065593,8.824,2416.0,2415.8,4.13934067]
[1750448065921,6.62458154,2416.3,2415.8,4.13934067]
[1750448065922,8.827,2415.9,2415.8,4.13934067]
[1750448067418,8.827,2415.9,2415.8,4.19994067]
[1750448070089,0.21618065,2416.2,2416.1,4.13890153]
[1750448070427,7.20318065,2416.2,2416.1,4.19950153]
[1750448070611,6.987,2416.2,2416.1,4.13890153]
[1750448071385,6.987,2416.2,2416.1,4.19950153]
[1750448071587,6.987,2416.2,2416.1,4.13890153]
[1750448073199,7.7433,2416.2,2416.1,4.13890153]
[1750448073523,6.987,2416.2,2416.1,4.13890153]
[1750448074348,7.20316814,2416.2,2416.1,4.13890153]
[1750448075823,17.20316814,2416.2,2416.1,4.13890153]
[1750448078430,7.20316814,2416.2,2416.1,4.13890153]
[1750448079433,10.0,2416.1,2415.8,2.2434]
[1750448079638,10.0,2416.1,2415.9,4.13916793]
[1750448079851,10.7786,2416.1,2415.9,4.13916793]
[1750448081122,10.7786,2416.1,2416.0,4.13907284]
[1750448081327,10.7786,2416.1,2415.9,4.13913963]
[1750448081662,16.985,2416.0,2415.9,4.13913963]
[1750448082273,0.21616814,2416.2,2416.1,4.13890153]
[1750448082443,9.03716814,2416.2,2416.1,4.19950153]
[1750448082761,18.821,2416.2,2416.1,4.19950153]
[1750448083061,10.0,2416.2,2416.1,4.13890153]
[1750448083264,18.821,2416.2,2416.0,4.1390294]
[1750448083562,19.5925,2416.2,2415.7,3.084]
[1750448083866,10.0,2415.9,2415.7,6.38297605]
[1750448084070,16.985,2415.8,2415.7,6.38297605]
[1750448084272,17.0474,2415.8,2415.7,2.2434]
[1750448084477,17.7565,2415.8,2415.7,2.2434]
[1750448085373,17.7565,2415.8,2415.7,6.38298686]
[1750448085584,10.0,2415.7,2415.1,2.2434]
[1750448085872,8.821,2415.6,2415.4,4.14003261]
[1750448086079,8.8834,2415.6,2415.4,4.14003261]
[1750448086440,10.0615,2415.5,2415.2,4.14032623]
[1750448086778,10.0615,2415.5,2415.1,2.2434]
[1750448086779,6.985,2415.4,2415.1,6.38393704]
[1750448086951,6.985,2415.4,2415.3,4.14027242]
[1750448088442,1.836,2415.5,2415.4,4.20240101]
[1750448088675,8.821,2415.5,2415.4,4.20240101]
[1750448089244,8.822,2415.5,2415.4,4.20240101]
[1750448089778,10.0,2415.9,2415.7,4.13958233]
[1750448089969,3.3151,2416.0,2415.6,4.13966547]
[1750448089970,19.20356301,2415.8,2415.6,4.13966547]
[1750448090172,18.821,2415.8,2415.6,4.13966547]
[1750448090359,18.821,2415.8,2415.7,4.13958686]
[1750448090562,19.20355588,2415.8,2415.6,4.13967069]
[1750448090751,8.821,2415.8,2415.6,4.13967069]
[1750448091149,8.821,2415.8,2415.7,4.13958686]
[1750448091354,9.20366576,2415.8,2415.7,4.13958686]
[1750448091548,8.821,2415.8,2415.7,4.13958686]
[1750448092164,8.821,2415.8,2415.3,0.8145]
[1750448092456,8.8825,2415.8,2415.5,4.13980585]
[1750448093186,8.821,2415.8,2415.6,4.13974029]
[1750448093685,1.14365123,2415.7,2415.4,4.13997428]
[1750448093888,6.985,2415.6,2415.4,4.13995047]
[1750448094054,6.985,2415.6,2415.5,4.13992962]
[1750448094677,6.985,2415.6,2415.4,4.13999837]
[1750448094879,6.985,2415.6,2415.4,4.13994269]
[1750448095090,6.985,2415.6,2415.5,4.13992962]
[1750448096056,0.8225,2415.7,2415.5,4.13992962]
[1750448096392,0.8225,2415.7,2415.4,4.14001729]
[1750448096888,30.0,2415.8,2415.6,4.13975344]
[1750448097198,12.486,2415.9,2415.7,4.13958182]
[1750448097399,8.82,2415.8,2415.7,4.13958182]
[1750448097603,8.82,2415.8,2415.5,4.13984671]
[1750448097782,18.8815,2415.8,2415.5,4.13984671]
[1750448098093,10.8089,2415.7,2415.5,4.13984671]
[1750448098293,2.486,2415.9,2415.6,4.13975823]
[1750448098593,18.821,2415.8,2415.6,4.13975823]
[1750448100115,18.821,2415.8,2415.5,4.13976456]
[1750448100333,14.80980715,2415.6,2415.2,4.14032044]
[1750448100621,10.0,2415.4,2415.3,4.14027242]
[1750448101120,10.0,2415.4,2415.2,4.14037072]
[1750448101322,18.821,2415.3,2415.2,4.14037072]
[1750448103928,18.821,2415.3,2415.2,4.20267072]
[1750448104344,18.821,2415.3,2415.2,5.21971291]
[1750448104744,0.8076,2416.0,2415.4,4.14005711]
[1750448104910,11.97688992,2417.3,2415.7,4.13958686]
[1750448104911,1.836,2415.8,2415.7,4.13958686]
[1750448105245,10.9862116,2416.2,2416.1,4.13890153]
[1750448105542,10.9862116,2416.2,2416.0,4.13903397]
[1750448105543,10.0,2416.1,2416.0,4.13899822]
[1750448105732,13.72814476,2416.1,2415.8,4.13934136]
[1750448105929,6.985,2416.0,2415.9,4.13924417]
[1750448106334,16.985,2416.0,2415.9,4.13924417]
[1750448107119,10.0,2415.9,2415.8,4.13932387]
[1750448107407,6.985,2416.0,2415.8,4.13934139]
[1750448107611,6.985,2416.0,2415.8,4.13940883]
[1750448107910,6.985,2416.0,2415.8,4.13933853]
[1750448108406,6.985,2416.0,2415.7,4.13948552]
[1750448108726,6.985,2416.0,2415.9,4.13924417]
[1750448108930,7.36887801,2416.0,2415.9,4.13924417]
[1750448109241,7.36894048,2416.0,2415.9,4.13924417]
[1750448109420,7.36894511,2416.0,2415.8,4.13931477]
[1750448109621,6.985,2416.0,2415.8,4.13931477]
[1750448109822,6.985,2416.0,2415.9,4.13924417]
[1750448110019,7.36894527,2416.0,2415.9,4.13924417]
[1750448110209,7.36894527,2416.0,2415.8,4.13932736]
[1750448110410,6.985,2416.0,2415.8,4.13931673]
[1750448110745,10.0,2416.1,2415.9,4.13924417]
[1750448110946,9.20303665,2416.0,2415.9,4.13924417]
[1750448111344,0.38403665,2416.0,2415.9,4.20154417]
[1750448111548,8.819,2416.0,2415.9,5.00074417]
[1750448111929,9.6421,2416.0,2415.4,0.8615]
[1750448112263,8.819,2415.9,2415.6,4.13964053]
[1750448112467,8.819,2415.9,2415.6,4.13962019]
[1750448112763,2.486,2415.8,2415.6,4.13962019]
[1750448112925,7.36813252,2415.7,2415.6,4.13962019]
[1750448113534,7.36813252,2415.7,2415.5,4.13982652]
[1750448113846,6.984,2415.7,2415.6,4.13975823]
[1750448114047,7.36827111,2415.7,2415.6,4.13975823]
[1750448114270,7.36813517,2415.7,2415.6,4.13975823]